Workbook

Sheet 5977000201
A1: Calculate impedance of ferrite cored inductor
A3: Reference:
A4: A method for estimating the impedance of a ferrite cored toroidal inductor at RF
A6: Inputs:
A7: Al (nH for 1t) | B7: =50*880 -> 44000
A8: N | B8: 1
A9: Cs (pF) | B9: 5
A11: Constants:
A12: Mix | B12: =Mix!B1 -> #77
A13: µi | B13: =Mix!B2 -> 2000
A15: Calculated values:
A16: 2*pi*N^2*Al | B16: =2*PI()*$B$8^2*$B$7*0.000000001 -> 0.0002764601535
A18: f (MHz) | B18: 0.1 | C18: =B18*1.2 -> 0.12 | D18: =C18*1.2 -> 0.144 | E18: 0.1728 | F18: 0.20736 | G18: 0.248832 | H18: 0.2985984 | I18: 0.35831808 | J18: 0.429981696 | K18: 0.5159780352 | L18: 0.6191736422 | M18: 0.7430083707 | N18: 0.8916100448 | O18: 1.069932054 | P18: 1.283918465 | Q18: 1.540702157 | R18: 1.848842589 | S18: 2.218611107 | T18: 2.662333328 | U18: 3.194799994 | V18: 3.833759992 | W18: 4.600511991 | X18: 5.520614389 | Y18: 6.624737267 | Z18: 7.94968472 | AA18: 9.539621664 | AB18: 11.447546 | AC18: 13.7370552 | AD18: 16.48446624 | AE18: 19.78135948
A19: µ'' | B19: =csinterpolate(CSTableU2,'5977000201'!B18*1000000) -> 59.24880841 | C19: =csinterpolate(CSTableU2,'5977000201'!C18*1000000) -> 68.86495126 | D19: =csinterpolate(CSTableU2,'5977000201'!D18*1000000) -> 79.4855807 | E19: =csinterpolate(CSTableU2,'5977000201'!E18*1000000) -> 91.16353584 | F19: =csinterpolate(CSTableU2,'5977000201'!F18*1000000) -> 105.5759503 | G19: =csinterpolate(CSTableU2,'5977000201'!G18*1000000) -> 122.2719003 | H19: =csinterpolate(CSTableU2,'5977000201'!H18*1000000) -> 141.0026567 | I19: =csinterpolate(CSTableU2,'5977000201'!I18*1000000) -> 181.9167226 | J19: =csinterpolate(CSTableU2,'5977000201'!J18*1000000) -> 228.386075 | K19: =csinterpolate(CSTableU2,'5977000201'!K18*1000000) -> 297.7660995 | L19: =csinterpolate(CSTableU2,'5977000201'!L18*1000000) -> 420.3323222 | M19: =csinterpolate(CSTableU2,'5977000201'!M18*1000000) -> 582.4685016 | N19: =csinterpolate(CSTableU2,'5977000201'!N18*1000000) -> 801.2985899 | O19: =csinterpolate(CSTableU2,'5977000201'!O18*1000000) -> 1028.508594 | P19: =csinterpolate(CSTableU2,'5977000201'!P18*1000000) -> 1190.597486 | Q19: =csinterpolate(CSTableU2,'5977000201'!Q18*1000000) -> 1261.835921 | R19: =csinterpolate(CSTableU2,'5977000201'!R18*1000000) -> 1279.852467 | S19: =csinterpolate(CSTableU2,'5977000201'!S18*1000000) -> 1248.41489 | T19: =csinterpolate(CSTableU2,'5977000201'!T18*1000000) -> 1162.058966 | U19: =csinterpolate(CSTableU2,'5977000201'!U18*1000000) -> 1056.531607 | V19: =csinterpolate(CSTableU2,'5977000201'!V18*1000000) -> 946.7604017 | W19: =csinterpolate(CSTableU2,'5977000201'!W18*1000000) -> 819.351169 | X19: =csinterpolate(CSTableU2,'5977000201'!X18*1000000) -> 686.6789087 | Y19: =csinterpolate(CSTableU2,'5977000201'!Y18*1000000) -> 564.2827922 | Z19: =csinterpolate(CSTableU2,'5977000201'!Z18*1000000) -> 451.5199018 | AA19: =csinterpolate(CSTableU2,'5977000201'!AA18*1000000) -> 365.9147135 | AB19: =csinterpolate(CSTableU2,'5977000201'!AB18*1000000) -> 263.8224118 | AC19: =csinterpolate(CSTableU2,'5977000201'!AC18*1000000) -> 331.4393039 | AD19: =csinterpolate(CSTableU2,'5977000201'!AD18*1000000) -> 1088.839776 | AE19: =csinterpolate(CSTableU2,'5977000201'!AE18*1000000) -> 3667.013503
A20: µ' | B20: =csinterpolate(CSTableU1,'5977000201'!B18*1000000) -> 2030.294258 | C20: =csinterpolate(CSTableU1,'5977000201'!C18*1000000) -> 2027.546699 | D20: =csinterpolate(CSTableU1,'5977000201'!D18*1000000) -> 2022.187455 | E20: =csinterpolate(CSTableU1,'5977000201'!E18*1000000) -> 2016.2099 | F20: =csinterpolate(CSTableU1,'5977000201'!F18*1000000) -> 2011.054018 | G20: =csinterpolate(CSTableU1,'5977000201'!G18*1000000) -> 2021.95906 | H20: =csinterpolate(CSTableU1,'5977000201'!H18*1000000) -> 2029.742973 | I20: =csinterpolate(CSTableU1,'5977000201'!I18*1000000) -> 2064.722242 | J20: =csinterpolate(CSTableU1,'5977000201'!J18*1000000) -> 2114.471579 | K20: =csinterpolate(CSTableU1,'5977000201'!K18*1000000) -> 2154.222282 | L20: =csinterpolate(CSTableU1,'5977000201'!L18*1000000) -> 2191.248838 | M20: =csinterpolate(CSTableU1,'5977000201'!M18*1000000) -> 2184.510857 | N20: =csinterpolate(CSTableU1,'5977000201'!N18*1000000) -> 2101.152019 | O20: =csinterpolate(CSTableU1,'5977000201'!O18*1000000) -> 2018.745417 | P20: =csinterpolate(CSTableU1,'5977000201'!P18*1000000) -> 1754.127835 | Q20: =csinterpolate(CSTableU1,'5977000201'!Q18*1000000) -> 1452.953891 | R20: =csinterpolate(CSTableU1,'5977000201'!R18*1000000) -> 1162.521294 | S20: =csinterpolate(CSTableU1,'5977000201'!S18*1000000) -> 892.8703566 | T20: =csinterpolate(CSTableU1,'5977000201'!T18*1000000) -> 660.8038552 | U20: =csinterpolate(CSTableU1,'5977000201'!U18*1000000) -> 459.511332 | V20: =csinterpolate(CSTableU1,'5977000201'!V18*1000000) -> 296.5195869 | W20: =csinterpolate(CSTableU1,'5977000201'!W18*1000000) -> 167.4863468 | X20: =csinterpolate(CSTableU1,'5977000201'!X18*1000000) -> 69.30906938 | Y20: =csinterpolate(CSTableU1,'5977000201'!Y18*1000000) -> 15.28424807 | Z20: =csinterpolate(CSTableU1,'5977000201'!Z18*1000000) -> 3.158212564 | AA20: =csinterpolate(CSTableU1,'5977000201'!AA18*1000000) -> 0.5857345044 | AB20: =csinterpolate(CSTableU1,'5977000201'!AB18*1000000) -> -0.9949664469 | AC20: =csinterpolate(CSTableU1,'5977000201'!AC18*1000000) -> -15.56440725 | AD20: =csinterpolate(CSTableU1,'5977000201'!AD18*1000000) -> -78.12253865 | AE20: =csinterpolate(CSTableU1,'5977000201'!AE18*1000000) -> -264.4558282
A21: Rl | B21: =B19/$B$13*$B$16*B18*1000000 -> 0.8189967334 | C21: 1.1423049 | D21: 1.582170901 | E21: 2.177546554 | F21: 3.026164503 | G21: 4.205672409 | H21: 5.819924099 | I21: 9.010396339 | J21: 13.57444676 | K21: 21.23777501 | L21: 35.97557937 | M21: 59.82307057 | N21: 98.75790768 | O21: 152.1131195 | P21: 211.3026555 | Q21: 268.7349342 | R21: 327.0863316 | S21: 382.8623599 | T21: 427.6545963 | U21: 466.5827922 | V21: 501.7270954 | W21: 521.0492725 | X21: 524.0149416 | Y21: 516.7351623 | Z21: 496.1686862 | AA21: 482.5180603 | AB21: 417.471308 | AC21: 629.3615411 | AD21: 2481.083704 | AE21: 10027.00413
A22: Xl | B22: =B20/$B$13*$B$16*B18*1000000 -> 28.06477311 | C22: 33.63215231 | D22: 40.25190631 | E22: 48.15950674 | F22: 57.64362304 | G22: 69.54743822 | H22: 83.77820905 | I22: 102.2663858 | J22: 125.6765846 | K22: 153.6470681 | L22: 187.5455261 | M22: 224.3625995 | N22: 258.9613657 | O22: 298.5659669 | P22: 311.3158511 | Q22: 309.4375915 | R22: 297.1005137 | S22: 273.8243949 | T22: 243.185427 | U22: 202.9282219 | V22: 157.137868 | W22: 106.5094461 | X22: 52.89078707 | Y22: 13.99636585 | Z22: 3.470514085 | AA22: 0.772386205 | AB22: -1.574430092 | AC22: -29.55485127 | AD22: -178.0138472 | AE22: -723.1224206
A23: Yl | B23: =IMDIV(1,COMPLEX(B21,B22)) -> 0.00103893746120584-0.0356015389733861i | C23: 0.00100872318886868-0.0296991914594208i | D23: 0.000975012112541777-0.024805219325782i | E23: 0.000936949994114801-0.0207219677955936i | F23: 0.000908227641748689-0.0173002927497246i | G23: 0.000866339085307752-0.0143262855851366i | H23: 0.000825209813198317-0.0118789522097351i | I23: 0.000854908684174496-0.00970306055460924i | J23: 0.000849524851717001-0.00786517371846115i | K23: 0.000882756873917082-0.00638640372726109i | L23: 0.000986508907649595-0.00514280340604537i | M23: 0.0011095323100667-0.00416122995652557i | N23: 0.00128567399300926-0.00337127325644049i | O23: 0.00135476548327483-0.00265911886902854i | P23: 0.00149260487114355-0.00219908053112585i | Q23: 0.00159989756242141-0.00184221842925366i | R23: 0.0016751821939778-0.00152160895260493i | S23: 0.00172800374216365-0.00123587385058443i | T23: 0.00176696619028695-0.00100478384003769i | U23: 0.00180231742989796-0.000783871753244604i | V23: 0.00181507402260387-0.000568470120258582i | W23: 0.00184222713946914-0.000376575887479802i | X23: 0.00188909712829655-0.000190673635481709i | Y23: 0.00193380855679488-0.0000523794276654163i | Z23: 0.00201534499325819-0.0000140965832359505i | AA23: 0.00207245597613532-3.31746423214586E-06i | AB23: 0.00239534012998217+0.00000903366413095i | AC23: 0.00158541560075625+0.0000744512005037809i | AD23: 0.000400985475241886+0.0000287700761541529i | AE23: 0.0000992146770944426+7.15511398500981E-06i
A24: Yc | B24: =COMPLEX(0,2*PI()*B18*1000000*$B$9*0.000000000001) -> 3.14159265358979E-06i | C24: 3.76991118430775E-06i | D24: 0.0000045238934211693i | E24: 5.42867210540316E-06i | F24: 6.51440652648379E-06i | G24: 7.81728783178055E-06i | H24: 9.38074539813666E-06i | I24: 0.000011256894477764i | J24: 0.0000135082733733168i | K24: 0.0000162099280479802i | L24: 0.0000194519136575762i | M24: 0.0000233422963890914i | N24: 0.0000280107556669097i | O24: 0.0000336129068002916i | P24: 0.00004033548816035i | Q24: 0.00004840258579242i | R24: 0.0000580831029509039i | S24: 0.0000696997235410847i | T24: 0.0000836396682493017i | U24: 0.000100367601899162i | V24: 0.000120441122278994i | W24: 0.000144529346734793i | X24: 0.000173435216081752i | Y24: 0.000208122259298102i | Z24: 0.000249746711157723i | AA24: 0.000299696053389267i | AB24: 0.000359635264067121i | AC24: 0.000431562316880545i | AD24: 0.000517874780256654i | AE24: 0.000621449736307984i
A25: Z | B25: =IMDIV(1,IMSUM(B23,B24)) -> 0.819141171237706+28.067245636512i | C25: 1.14259462105587+33.6364121549095i | D25: 1.58274726987347+40.2592259948469i | E25: 2.1786856050549+48.1720751997466i | F25: 3.0284385171508+57.6652174346632i | G25: 4.21024915213421+69.5851313082258i | H25: 5.82908265767354+83.843783811325i | I25: 9.0311776958625+102.383333645249i | J25: 13.6206538951178+125.887803413458i | K25: 21.3439589477109+154.023331855854i | L25: 36.2394912979732+188.206766695303i | M25: 60.454511843639+225.458940030625i | N25: 100.205591745547+260.574297273119i | O25: 155.20867633143+300.791029981576i | P25: 216.694853804678+313.404404963913i | Q25: 276.921177570835+310.485875711126i | R25: 338.547631686145+295.77272973234i | S25: 397.611604532535+268.335278740456i | T25: 445.003859424475+231.986731713087i | U25: 485.07732391853+183.958918180481i | V25: 519.301247443773+128.18321161801i | W25: 534.343406907554+67.3057824881087i | X25: 529.309331102142+4.83006199372988i | Y25: 513.781787370006-41.3783619506421i | Z25: 489.500441664329-57.2362757154924i | AA25: 472.84887558532-67.6213556496592i | AB25: 407.816655710733-62.7674239162506i | AC25: 572.436454567042-182.703250627982i | AD25: 872.447332563104-1189.36688803318i | AE25: 244.982006001488-1552.15822615088i
A26: R | B26: =IMREAL(B25) -> 0.8191411712 | C26: 1.142594621 | D26: 1.58274727 | E26: 2.178685605 | F26: 3.028438517 | G26: 4.210249152 | H26: 5.829082658 | I26: 9.031177696 | J26: 13.6206539 | K26: 21.34395895 | L26: 36.2394913 | M26: 60.45451184 | N26: 100.2055917 | O26: 155.2086763 | P26: 216.6948538 | Q26: 276.9211776 | R26: 338.5476317 | S26: 397.6116045 | T26: 445.0038594 | U26: 485.0773239 | V26: 519.3012474 | W26: 534.3434069 | X26: 529.3093311 | Y26: 513.7817874 | Z26: 489.5004417 | AA26: 472.8488756 | AB26: 407.8166557 | AC26: 572.4364546 | AD26: 872.4473326 | AE26: 244.982006
A27: X | B27: =IMAGINARY(B25) -> 28.06724564 | C27: 33.63641215 | D27: 40.25922599 | E27: 48.1720752 | F27: 57.66521743 | G27: 69.58513131 | H27: 83.84378381 | I27: 102.3833336 | J27: 125.8878034 | K27: 154.0233319 | L27: 188.2067667 | M27: 225.45894 | N27: 260.5742973 | O27: 300.79103 | P27: 313.404405 | Q27: 310.4858757 | R27: 295.7727297 | S27: 268.3352787 | T27: 231.9867317 | U27: 183.9589182 | V27: 128.1832116 | W27: 67.30578249 | X27: 4.830061994 | Y27: -41.37836195 | Z27: -57.23627572 | AA27: -67.62135565 | AB27: -62.76742392 | AC27: -182.7032506 | AD27: -1189.366888 | AE27: -1552.158226
A28: |Z| | B28: =IMABS(B25) -> 28.07919639 | C28: 33.65581295 | D28: 40.29032597 | E28: 48.2213179 | F28: 57.74468583 | G28: 69.71238554 | H28: 84.0461676 | I28: 102.7808794 | J28: 126.6225148 | K28: 155.4951811 | L28: 191.663997 | M28: 233.4233957 | N28: 279.1775869 | O28: 338.4744849 | P28: 381.023596 | Q28: 416.0370387 | R28: 449.5508943 | S28: 479.6861577 | T28: 501.8428824 | U28: 518.7879083 | V28: 534.8875782 | W28: 538.5656365 | X28: 529.3313683 | Y28: 515.4453355 | Z28: 492.8353413 | AA28: 477.659614 | AB28: 412.6186789 | AC28: 600.8859894 | AD28: 1475.045065 | AE28: 1571.372439
A32: Module | B32: Version | C32: Date
A33: CubicSpline | B33: =CubicSpline_version("v") -> 1.03 | C33: =CubicSpline_version("d") -> 2010-07-06
A35: Copyright: Owen Duffy 2010. All rights reserved.

Sheet Mix
A1: Mix | B1: #77
A2: µi | B2: 2000
A5: # #77 mix u' | E5: CSTable | J5: # #77 mix u'' | N5: CSTable
A6: 10000 | B6: 1990.39 | E6: =cstable(A6:A58,B6:B58) -> 10000 | F6: 1990.39 | G6: 0 | J6: 10000 | K6: 14.2817 | N6: =cstable(Mix!J6:J58,Mix!K6:K58) -> 10000 | O6: 14.2817 | P6: 0
A7: 25798 | B7: 1990.39 | E7: 25798 | F7: 1990.39 | G7: -1.945816768e-08 | J7: 25798 | K7: 25.6869 | N7: 25798 | O7: 25.6869 | P7: -1.557745303e-08
A8: 36134.9 | B8: 1990.39 | E8: 36134.9 | F8: 1990.39 | G8: 9.83926064e-08 | J8: 36134.9 | K8: 31.6958 | N8: 36134.9 | O8: 31.6958 | P8: -2.860791706e-09
A9: 56829.4 | B9: 2008.06 | E9: 56829.4 | F9: 2008.06 | G9: -3.780150176e-08 | J9: 56829.4 | K9: 42.0409 | N9: 56829.4 | O9: 42.0409 | P9: -7.242836523e-09
A10: 100352 | B10: 2030.47 | E10: 100352 | F10: 2030.47 | G10: 1.804002757e-08 | J10: 100352 | K10: 59.4155 | N10: 100352 | O10: 59.4155 | P10: 8.853010723e-09
A11: 105777 | B11: 2032.56 | E11: 105777 | F11: 2032.56 | G11: -1.656628809e-07 | J11: 105777 | K11: 62.068 | N11: 105777 | O11: 62.068 | P11: -2.405852039e-09
A12: 113868 | B12: 2030.03 | E12: 113868 | F12: 2030.03 | G12: 2.381070495e-08 | J12: 113868 | K12: 65.9817 | N12: 113868 | O12: 65.9817 | P12: -1.776216972e-09
A13: 140561 | B13: 2022.83 | E13: 140561 | F13: 2022.83 | G13: -2.185137905e-09 | J13: 140561 | K13: 78.0299 | N13: 140561 | O13: 78.0299 | P13: -1.912766634e-09
A14: 192780 | B14: 2012.08 | E14: 192780 | F14: 2012.08 | G14: 1.771525485e-09 | J14: 192780 | K14: 99.3036 | N14: 192780 | O14: 99.3036 | P14: 1.637057818e-09
A15: 196883 | B15: 2011.36 | E15: 196883 | F15: 2011.36 | G15: 2.360430545e-08 | J15: 196883 | K15: 101.038 | N15: 196883 | O15: 101.038 | P15: 1.804868712e-09
A16: 245609 | B16: 2021.01 | E16: 245609 | F16: 2021.01 | G16: -5.337742426e-09 | J16: 245609 | K16: 121.188 | N16: 245609 | O16: 121.188 | P16: -5.181723542e-09
A17: 300009 | B17: 2029.78 | E17: 300009 | F17: 2029.78 | G17: -4.967302026e-09 | J17: 300009 | K17: 141.822 | N17: 300009 | O17: 141.822 | P17: 1.425338438e-08
A18: 319575 | B18: 2032.56 | E18: 319575 | F18: 2032.56 | G18: 4.653050868e-08 | J18: 319575 | K18: 155.155 | N18: 319575 | O18: 155.155 | P18: -7.069201197e-10
A19: 347663 | B19: 2055.41 | E19: 347663 | F19: 2055.41 | G19: -1.099938458e-08 | J19: 347663 | K19: 174.901 | N19: 347663 | O19: 174.901 | P19: -2.922979428e-09
A20: 411462 | B20: 2101.89 | E20: 411462 | F20: 2101.89 | G20: 3.206826983e-09 | J20: 411462 | K20: 215.695 | N20: 411462 | O20: 215.695 | P20: 2.750529123e-09
A21: 438297 | B21: 2119.59 | E21: 438297 | F21: 2119.59 | G21: -1.092810133e-08 | J21: 438297 | K21: 234.184 | N21: 438297 | O21: 234.184 | P21: -5.461764213e-10
A22: 471824 | B22: 2135.2 | E22: 471824 | F22: 2135.2 | G22: 2.066397177e-09 | J22: 471824 | K22: 257.768 | N22: 471824 | O22: 257.768 | P22: 2.350192603e-09
A23: 502597 | B23: 2148.67 | E23: 502597 | F23: 2148.67 | G23: -2.164017513e-09 | J23: 502597 | K23: 283.27 | N23: 502597 | O23: 283.27 | P23: 1.520032041e-08
A24: 541043 | B24: 2164.5 | E24: 541043 | F24: 2164.5 | G24: 2.084555338e-09 | J24: 541043 | K24: 328.045 | N24: 541043 | O24: 328.045 | P24: -4.19243326e-09
A25: 601123 | B25: 2187.3 | E25: 601123 | F25: 2187.3 | G25: -8.673135924e-09 | J25: 601123 | K25: 398.086 | N25: 601123 | O25: 398.086 | P25: 4.140919365e-09
A26: 620416 | B26: 2191.61 | E26: 620416 | F26: 2191.61 | G26: 1.632737391e-08 | J26: 620416 | K26: 421.881 | N26: 620416 | O26: 421.881 | P26: -7.947564915e-12
A27: 711433 | B27: 2210.35 | E27: 711433 | F27: 2210.35 | G27: -3.889189198e-08 | J27: 711433 | K27: 538.108 | N27: 711433 | O27: 538.108 | P27: 2.017828275e-09
A28: 718964 | B28: 2204.18 | E28: 718964 | F28: 2204.18 | G28: 3.759433025e-09 | J28: 718964 | K28: 548.275 | N28: 718964 | O28: 548.275 | P28: 5.477313526e-09
A29: 815803 | B29: 2131.47 | E29: 815803 | F29: 2131.47 | G29: -8.382006458e-10 | J29: 815803 | K29: 690.479 | N29: 815803 | O29: 690.479 | P29: -4.625228062e-09
A30: 833166 | B30: 2119.59 | E30: 833166 | F30: 2119.59 | G30: 1.308013879e-08 | J30: 833166 | K30: 714.674 | N30: 833166 | O30: 714.674 | P30: 4.385050155e-09
A31: 945387 | B31: 2097.49 | E31: 945387 | F31: 2097.49 | G31: -4.025230691e-09 | J31: 945387 | K31: 878.728 | N31: 945387 | O31: 878.728 | P31: -5.754178723e-09
A32: 1040000 | B32: 2053.97 | E32: 1040000 | F32: 2053.97 | G32: -1.459666784e-08 | J32: 1040000 | K32: 992.045 | N32: 1040000 | O32: 992.045 | P32: 3.203181514e-09
A33: 1100000 | B33: 1974.8 | E33: 1100000 | F33: 1974.8 | G33: -4.376953413e-09 | J33: 1100000 | K33: 1061.2 | N33: 1100000 | O33: 1061.2 | P33: -1.194540178e-08
A34: 1130000 | B34: 1928.77 | E34: 1130000 | F34: 1928.77 | G34: 1.248838948e-08 | J34: 1130000 | K34: 1085.58 | N34: 1130000 | O34: 1085.58 | P34: -2.71728567e-09
A35: 1270000 | B35: 1773.63 | E35: 1270000 | F35: 1773.63 | G35: -1.112572118e-08 | J35: 1270000 | K35: 1179.85 | N35: 1270000 | O35: 1179.85 | P35: 3.188443132e-09
A36: 1320000 | B36: 1700.8 | E36: 1320000 | F36: 1700.8 | G36: 7.773133242e-09 | J36: 1320000 | K36: 1216.12 | N36: 1320000 | O36: 1216.12 | P36: -1.037862507e-08
A37: 1440000 | B37: 1563.99 | E37: 1440000 | F37: 1563.99 | G37: -1.56232703e-09 | J37: 1440000 | K37: 1241.89 | N37: 1440000 | O37: 1241.89 | P37: 2.545086392e-09
A38: 1580000 | B38: 1408.35 | E38: 1580000 | F38: 1408.35 | G38: 3.560596584e-10 | J38: 1580000 | K38: 1271.52 | N38: 1580000 | O38: 1271.52 | P38: -6.903769489e-10
A39: 1630000 | B39: 1353.1 | E39: 1630000 | F39: 1353.1 | G39: 2.474176566e-09 | J39: 1630000 | K39: 1281.56 | N39: 1630000 | O39: 1281.56 | P39: -3.180519944e-09
A40: 1780000 | B40: 1216.12 | E40: 1780000 | F40: 1216.12 | G40: 9.555092724e-10 | J40: 1780000 | K40: 1281.56 | N40: 1780000 | O40: 1281.56 | P40: 6.795121681e-10
A41: 1980000 | B41: 1061.2 | E41: 1980000 | F41: 1061.2 | G41: -1.041914878e-09 | J41: 1980000 | K41: 1281.56 | N41: 1980000 | O41: 1281.56 | P41: 7.097370106e-12
A42: 2040000 | B42: 1012.3 | E42: 2040000 | F42: 1012.3 | G42: 1.804898032e-09 | J42: 2040000 | K42: 1281.56 | N42: 2040000 | O42: 1281.56 | P42: -2.326551101e-09
A43: 2290000 | B43: 851.525 | E43: 2290000 | F43: 851.525 | G43: -1.004875486e-10 | J43: 2290000 | K43: 1230.87 | N43: 2290000 | O43: 1230.87 | P43: 9.019033619e-10
A44: 2520000 | B44: 724.371 | E44: 2520000 | F44: 724.371 | G44: 8.120985615e-10 | J44: 2520000 | K44: 1190.89 | N44: 2520000 | O44: 1190.89 | P44: -4.808085822e-10
A45: 2860000 | B45: 583.865 | E45: 2860000 | F45: 583.865 | G45: -1.915794159e-10 | J45: 2860000 | K45: 1118.3 | N45: 2860000 | O45: 1118.3 | P45: 3.018839184e-10
A46: 3170000 | B46: 467.278 | E46: 3170000 | F46: 467.278 | G46: 6.320477296e-10 | J46: 3170000 | K46: 1061.2 | N46: 3170000 | O46: 1061.2 | P46: -1.714047298e-10
A47: 3380000 | B47: 408.82 | E47: 3380000 | F47: 408.82 | G47: -5.545719341e-11 | J47: 3380000 | K47: 1021.19 | N47: 3380000 | O47: 1021.19 | P47: 2.223587501e-10
A48: 3840000 | B48: 295.217 | E48: 3840000 | F48: 295.217 | G48: 2.82680275e-10 | J48: 3840000 | K48: 945.629 | N48: 3840000 | O48: 945.629 | P48: -2.269589904e-10
A49: 4040000 | B49: 257.768 | E49: 4040000 | F49: 257.768 | G49: 5.340303402e-11 | J49: 4040000 | K49: 907.196 | N49: 4040000 | O49: 907.196 | P49: 1.494455155e-10
A50: 4690000 | B50: 154.228 | E50: 4690000 | F50: 154.228 | G50: 3.137683232e-11 | J50: 4690000 | K50: 807.692 | N50: 4690000 | O50: 807.692 | P50: 3.973224635e-11
A51: 4940000 | B51: 120.118 | E51: 4940000 | F51: 120.118 | G51: 1.836943035e-10 | J51: 4940000 | K51: 774.865 | N51: 4940000 | O51: 774.865 | P51: -1.520286679e-10
A52: 5370000 | B52: 80.5226 | E52: 5370000 | F52: 80.5226 | G52: 1.97153156e-11 | J52: 5370000 | K52: 707.955 | N52: 5370000 | O52: 707.955 | P52: 1.18711674e-10
A53: 5910000 | B53: 43.384 | E53: 5910000 | F53: 43.384 | G53: 4.186403634e-11 | J53: 5910000 | K53: 639.563 | N53: 5910000 | O53: 639.563 | P53: 1.627495467e-11
A54: 6230000 | B54: 27.0691 | E54: 6230000 | F54: 27.0691 | G54: 7.529475995e-11 | J54: 6230000 | K54: 604.464 | N54: 6230000 | O54: 604.464 | P54: 3.033635976e-11
A55: 6490000 | B55: 18.5605 | E55: 6490000 | F55: 18.5605 | G55: 3.389866975e-11 | J55: 6490000 | K55: 577.777 | N55: 6490000 | O55: 577.777 | P55: 7.131696276e-12
A56: 7770000 | B56: 3.73318 | E56: 7770000 | F56: 3.73318 | G56: 2.238050615e-12 | J56: 7770000 | K56: 463.619 | N56: 7770000 | O56: 463.619 | P56: 3.975401804e-11
A57: 9290000 | B57: 0.750877 | E57: 9290000 | F57: 0.750877 | G57: 1.189100721e-12 | J57: 9290000 | K57: 379.897 | N57: 9290000 | O57: 379.897 | P57: -1.784014881e-11
A58: 10000000 | B58: 0.387946 | E58: 10000000 | F58: 0.387946 | G58: 0 | J58: 10000000 | K58: 338.525 | N58: 10000000 | O58: 338.525 | P58: 0
Q67: x
